Cogmind - Beta 13 @@@ ROGUE MODE // 2024.04.04 @ 18:24:00 Player: SovietPaperclip Result: Destroyed by as-46524 with Assembled Rifle Performance ------------- Evolutions (0) 0 Regions Visited (3) 600 Robots Destroyed (16) 80 Value Destroyed (510) 510 Prototype IDs (23) 460 Alien Tech Used (0) 0 Bonus (351) 351 TOTAL SCORE: 2001 Bonus ------- Follower Combat Kills 60 Aligned with FarCom 300 Friendly Fire -9 Cogmind --------- Core Integrity 0/250 Matter 250/300 Energy 177/265 System Corruption 3% Temperature Hot (236) Movement Treading (320) Ox2 Location -10/Exiles Parts ------- > --- POWER (1) -------- Improved Ion Engine > --- PROPULSION (2) --- Light Treads > --- UTILITY (2) ------ Large Storage Unit > --- WEAPON (2) ------- Latent Energy Streamer Guided Plasma Cannon > --- INVENTORY (15) --- Light Nuclear Core Light Nuclear Core Light Treads Light Treads Light Treads Medium Storage Unit Structural Scanner Signal Interpreter Light Armor Plating Heavy Assault Rifle Heavy Assault Rifle Grenade Launcher Longsword +1 Peak State ------------ > --- POWER ------------ Improved Ion Engine > --- PROPULSION ------- Light Treads Light Treads > --- UTILITY ---------- Large Storage Unit Targeting Computer > --- WEAPON ----------- Latent Energy Streamer Guided Plasma Cannon > --- INVENTORY -------- Light Nuclear Core Light Nuclear Core Light Treads Light Treads Light Treads Medium Storage Unit Structural Scanner Signal Interpreter Light Armor Plating Heavy Assault Rifle Heavy Assault Rifle Grenade Launcher Longsword +1 [Rating: 26] Favorites ----------- Power Improved Ion Engine Engine Improved Ion Engine Propulsion Light Treads Treads Light Treads Utility Large Storage Unit Device Heat Sink Storage Large Storage Unit Processor Targeting Computer Weapon Heavy Assault Rifle Energy Cannon Latent Energy Streamer Ballistic Gun Heavy Assault Rifle Launcher Grenade Launcher Slashing Weapon Longsword +1 Build | -11 -10 -10 -10 ------- Run | Yrd Mat Min Exi Slots Evolved . | . . . . Power . | . . . . Propulsion . | . . . . Utility . | . . . . Weapon . | . . . . Parts Attached 24 | 6 3 9 6 Power 3 | 1 . 2 . Engine 3 | 1 . 2 . Core . | . . . . Reactor . | . . . . Propulsion 4 | 2 . 2 . Treads 4 | 2 . 2 . Leg . | . . . . Wheel . | . . . . Hover . | . . . . Flight . | . . . . Utility 5 | 1 3 1 . Device 1 | . 1 . . Storage 3 | 1 2 . . Processor 1 | . . 1 . Hackware . | . . . . Protection . | . . . . Artifact . | . . . . Weapon 12 | 2 . 4 6 Energy Gun . | . . . . Energy Cannon 4 | . . . 4 Ballistic Gun 5 | 2 . 3 . Ballistic Cannon . | . . . . Launcher 1 | . . 1 . Special Weapon . | . . . . Impact Weapon . | . . . . Slashing Weapon 2 | . . . 2 Piercing Weapon . | . . . . Special Melee Weapon . | . . . . Unidentified Prototypes 3 | . . . 3 Parts Lost 6 | . . 4 2 Power . | . . . . Propulsion 2 | . . 1 1 Utility 2 | . . 1 1 Weapon 2 | . . 2 . Highest Loss Streak 4 | . . 4 2 To Critical Strikes 1 | . . . 1 Average Slot Usage (%) 93 | . 97 97 89 Engine 14 | . 14 14 14 Treads 27 | . 28 27 27 Device 1 | . 2 3 . Storage 16 | . 22 14 14 Processor 9 | . . 9 13 Energy Cannon 2 | . . . 6 Ballistic Gun 20 | . 28 26 11 Naked Turns . | . . . . Heaviest Build 47 | 14 34 33 47 Greatest Support 40 | 40 40 40 40 Greatest Overweight (x) 1 | . . 1 1 Average Overweight (x) . | . . . . Largest Inventory Capacity 15 | 8 15 15 15 Average Capacity 14 | 6 14 15 15 Most Carried 14 | 4 11 13 14 Average Carried 9 | 1 5 9 11 Final Capacity 15 | 8 15 15 15 Final Carried 13 | 1 10 10 13 Class Distribution -------------------- 100% | Mutant Dominant Class ---------------- Mutant | -10/Materials Mutant | -10/Mines Mutant | -10/Exiles Resources | -11 -10 -10 -10 ----------- Run | Yrd Mat Min Exi Matter Collected 691 | 252 175 264 . Remotely . | . . . . Salvage Created 718 | . 410 308 . Parts 35 | . 18 17 . Haulers Intercepted . | . . . . Recyclers Shooed 2 | . 2 . . Parts Field Recycled . | . . . . Retrieved Matter . | . . . . Parts Self-Destructed . | . . . . Prevented . | . . . . Kills | -11 -10 -10 -10 ------- Run | Yrd Mat Min Exi Combat Hostiles Destroyed 12 | . 6 6 . Guns 11 | . 6 5 . AOE 1 | . . 1 . Classes Destroyed 6 | . 4 2 . Worker 1 | . . 1 . Builder 1 | . 1 . . Recycler 1 | . 1 . . Operator 1 | . 1 . . Grunt 10 | . 6 4 . Sentry 2 | . . 2 . Best Kill Streak 3 | . 3 2 . Combat Bots Only 2 | . 2 2 . Max Kills in Single Turn 1 | . 1 1 . Gunslinging . | . . . . Exploded 1 | . . 1 . Melee . | . . . . Uniques/NPCs Destroyed . | . . . . Combat | -11 -10 -10 -10 -------- Run | Yrd Mat Min Exi Hostile Shots Fired 121 | . 26 56 39 Missed 26 | . 2 11 13 Damage Taken 1478 | . 316 615 547 Core 250 | . 51 118 81 Absorbed by Shields . | . . . . Core Remaining (%) 100 | 100 . . . Volleys Fired 61 | . 27 29 5 Largest 2 | . 2 2 1 Hottest 120 | . 40 50 120 Shots Fired 110 | . 54 51 5 Gun 102 | . 54 48 . Cannon 5 | . . . 5 Launcher 3 | . . 3 . Special . | . . . . Kinetic 102 | . 54 48 . Thermal 4 | . . . 4 Explosive 3 | . . 3 . Electromagnetic 1 | . . . 1 Robot Hit Streak 19 | . 8 19 6 Robot Miss Streak 3 | . 3 2 . Penetration Max . | . . . . Secondary Targets 1 | . . 1 . Max Gunslinging Chain 1 | . . 1 . Shots Hit Robots 81 | . 35 41 5 Core Hits 34 | . 18 14 2 Critical Kills 1 | . 1 . . Critical Parts Destroyed . | . . . . Critical Strikes 1 | . 1 . . Destroy 1 | . 1 . . Melee Attacks . | . . . . Impact . | . . . . Slashing . | . . . . Piercing . | . . . . Sneak Attacks . | . . . . Combat Hostiles . | . . . . Follow-up Attacks . | . . . . Damage Inflicted 1105 | . 462 622 21 Guns 962 | . 458 504 . Cannons 12 | . . . 12 Explosions 127 | . . 118 9 Melee . | . . . . Ramming 4 | . 4 . . Kinetic 962 | . 458 504 . Thermal 12 | . . . 12 Explosive 118 | . . 118 . Electromagnetic 9 | . . . 9 Impact . | . . . . Slashing . | . . . . Piercing . | . . . . Highest Corruption 3 | . . . 3 Average Corruption 3 | . . . 3 Corruption Purged . | . . . . Corruption Blocked . | . . . . Overload Shots . | . . . . Overflow Damage . | . . . . Projectiles . | . . . . Explosions . | . . . . Melee . | . . . . Knockbacks . | . . . . Impact . | . . . . Kinetic . | . . . . Secondary . | . . . . Self-Inflicted Damage 77 | . . . 77 Shots 1 | . . . 1 Rammed 1 | . 1 . . Targets Rammed 1 | . 1 . . Kicked . | . . . . Crushed . | . . . . Highest Temperature 350 | . 8 10 350 Average Temperature 118 | . 2 4 241 Received Heat Transfer 474 | . 174 300 . Effects 1 | . . . 1 Interference 1 | . . . 1 Siege Activations . | . . . . Robots Corrupted . | . . . . Combat Hostiles . | . . . . Parts Fried . | . . . . Impact Corruptions . | . . . . Robots Melted . | . . . . Combat Hostiles . | . . . . Parts Melted . | . . . . Heat Transferred 80 | . . . 80 Parts Sabotaged . | . . . . Parts Stolen . | . . . . Parts Stripped . | . . . . Power Chain Reactions . | . . . . Latent Energy Used 200 | . . . 200 LE Corruption 3 | . . . 3 Alert | -11 -10 -10 -10 ------- Run | Yrd Mat Min Exi Peak Influence 187 | . 135 187 . Initial 7 | . . 7 . Average 66 | . 41 88 . Maximum Alert Level . | . . . . Low Security (%) 100 | 100 100 100 . Level 1 . | . . . . Level 2 . | . . . . Level 3 . | . . . . Level 4 . | . . . . Level 5 . | . . . . High Security . | . . . . Max Security . | . . . . Squads Dispatched . | . . . . Investigation . | . . . . Extermination . | . . . . Reinforcement . | . . . . Assault . | . . . . Garrison . | . . . . Intercept . | . . . . Searches Triggered . | . . . . Construction Impeded . | . . . . Haulers Reinforced . | . . . . Active Scanning Responses . | . . . . Cargo Convoy Interrupts . | . . . . Stealth | -11 -10 -10 -10 --------- Run | Yrd Mat Min Exi Distress Signals . | . . . . Communications Jammed . | . . . . Distress Signals . | . . . . Times Spotted 24 | . 7 9 8 Peak Tracking Total 9 | . 2 2 9 Tactical Retreats 2 | . . 2 . Traps | -11 -10 -10 -10 ------- Run | Yrd Mat Min Exi Traps Triggered . | . . . . Indirectly . | . . . . Trap Hack Attempts . | . . . . Triggered . | . . . . Disarmed . | . . . . Reprogrammed . | . . . . Reused . | . . . . Traps Extracted . | . . . . Installed . | . . . . Triggered . | . . . . Machines | -11 -10 -10 -10 ---------- Run | Yrd Mat Min Exi Machines Disabled 3 | . . 1 2 Max in Single Turn 2 | . . 1 2 Machines Repaired . | . . . . Machines Dismantled . | . . . . Machines Sabotaged . | . . . . Overloaded Fab Kills . | . . . . Hacking | -11 -10 -10 -10 --------- Run | Yrd Mat Min Exi Machines Accessed 6 | . 1 . 5 Terminals 1 | . 1 . . Fabricators . | . . . . Repair Stations . | . . . . Recycling Units . | . . . . Scanalyzers . | . . . . Garrison Access . | . . . . Total Hacks 31 | . 3 . 28 Successful 29 | . 1 . 28 Failed 2 | . 2 . . Catastrophic . | . . . . Database Lockouts . | . . . . Manual 1 | . . . 1 Terminals 3 | . 3 . . Fabricators . | . . . . Repair Stations . | . . . . Recycling Units . | . . . . Scanalyzers . | . . . . Garrison Access . | . . . . Terminal Hacks 29 | . 1 . 28 Record 27 | . . . 27 Hauler Manifests 1 | . 1 . . Derelict Proto ID Bank 1 | . . . 1 Fabricator Hacks . | . . . . Repair Station Hacks . | . . . . Recycling Unit Hacks . | . . . . Scanalyzer . | . . . . Garrison Access Hacks . | . . . . Unauthorized Hacks . | . . . . Terminals . | . . . . Fabricators . | . . . . Repair Stations . | . . . . Recycling Units . | . . . . Scanalyzers . | . . . . Garrison Access . | . . . . Data Cores Recovered 1 | . 1 . . Used 1 | . 1 . . Hacking Detections 1 | . 1 . . Full Trace Events . | . . . . Feedback Events . | . . . . Feedback Blocked . | . . . . Robot Schematics Acquired . | . . . . Robots Built . | . . . . Authchips . | . . . . Time . | . . . . Total Robot Build Rating . | . . . . Part Schematics Acquired . | . . . . Parts Built . | . . . . Authchips . | . . . . Time . | . . . . Total Part Build Rating . | . . . . Parts Repaired . | . . . . Time . | . . . . Parts Recycled . | . . . . Recycled Matter . | . . . . Retrieved Matter . | . . . . Retrieved Components . | . . . . Parts Scanalyzed . | . . . . Part Schematics Acquired . | . . . . Parts Damaged . | . . . . Bothacking | -11 -10 -10 -10 ------------ Run | Yrd Mat Min Exi Used RIF Installer . | . . . . Robots Hacked . | . . . . Non-combat . | . . . . Combat . | . . . . Robot Hacks Applied . | . . . . Relay Couplers Released . | . . . . Fabnet Peak Effective % . | . . . . Robots Rewired . | . . . . Allies Hacked . | . . . . Hacks Repelled . | . . . . Allies | -11 -10 -10 -10 -------- Run | Yrd Mat Min Exi Total Allies 1 | . . 1 . Largest Group 1 | . . 1 . Highest-Rated Group 31 | . . 31 . Highest-Rated Ally 31 | . . 31 . Total Orders . | . . . . Ally Attacks 9 | . . 9 . Total Damage 126 | . . 126 . Kills 2 | . . 2 . Allies Corrupted . | . . . . Allies Melted . | . . . . Intel | -11 -10 -10 -10 ------- Run | Yrd Mat Min Exi Robot Analysis Total . | . . . . Derelict Logs Recovered 1 | . . 1 . Drone Launches . | . . . . Drone Recoveries . | . . . . Exploration | -11 -10 -10 -10 ------------- Run | Yrd Mat Min Exi Turns Passed 2593 | 65 575 851 1102 Spaces Moved 1389 | 39 286 431 633 Core 8 | 8 . . . Treads 1381 | 31 286 431 633 Legs . | . . . . Wheels . | . . . . Hover . | . . . . Flight . | . . . . Fastest Speed 50 | 50 160 160 160 Average Speed 164 | 137 160 162 168 Slowest Speed 240 | 160 160 240 240 Overloaded Moves . | . . . . Propulsion Burnouts . | . . . . Robots Hopped . | . . . . Cave-ins Triggered . | . . . . Exploration Rate (%) 45 | 3 38 68 72 Regions Visited 3 Branch Regions 2 Pre-discovered Areas 1 | . . 1 . Known Exits Taken . | . . . . Unknown Exits Taken 3 | 1 1 1 . Scrap Searched 1 | . . 1 . Spaces Dug . | . . . . Terrain Destroyed 56 | . . 26 30 Melee . | . . . . Projectile . | . . . . AOE 56 | . . 26 30 Terrain Rammed . | . . . . Walls Destroyed . | . . . . Machines Disabled . | . . . . Actions | -11 -10 -10 -10 --------- Run | Yrd Mat Min Exi Total 1597 | 51 351 530 665 Wait 74 | . 18 50 6 Move 1386 | 38 285 430 633 Hop . | . . . . Pick Up 37 | 7 13 8 9 Fast Attach . | . . . . Attach 19 | 6 3 4 6 Detach 1 | . 1 . . Swap 5 | . . 5 . Drop 13 | . 3 4 6 Fire 61 | . 27 29 5 Melee . | . . . . Ram . | . . . . Kick . | . . . . Crush 1 | . 1 . . Escape Stasis . | . . . . Rewire . | . . . . Trap . | . . . . Miscellaneous . | . . . . Route ------- -11/Scrapyard -10/Materials (discovered 2 exits: [*Mat] / [*Min]) -10/Mines (discovered 2 exits: [*Mat] / *Exi) -10/Exiles (discovered 1 exit: [*Min]) History --------- Turn | Location | Event 2 | -11/Scrapyard | Met Revision 17 3 | -11/Scrapyard | Discovered new exit (range 15) 66 | -11/Scrapyard | Entered Materials 184 | -10/Materials | Discovered new exit (range 7) 312 | -10/Materials | Build established: Mutant 403 | -10/Materials | Discovered new exit (range 5) 641 | -10/Materials | Entered Mines 748 | -10/Mines | Learned location of Zion (-7) 838 | -10/Mines | Core integrity fell below 50% 901 | -10/Mines | Lost 4 parts (1n1u2w) 960 | -10/Mines | Discovered new exit (range 3) 961 | -10/Mines | Received a Mining Laser from a helpful Derelict 1194 | -10/Mines | Deemed a non-threat by the Exiles lab entrance 1194 | -10/Mines | Discovered new exit (range 5) 1353 | -10/Mines | Found a hidden stash of uninstalled traps 1492 | -10/Mines | Entered Exiles 1531 | -10/Exiles | Met 8R-AWN 1560 | -10/Exiles | Met EX-HEX 1606 | -10/Exiles | Met EX-BIN 1740 | -10/Exiles | Met EX-DEC 1916 | -10/Exiles | Aligned with FarCom system 1918 | -10/Exiles | Given EX-Vault access code 1955 | -10/Exiles | Opened EX-Vault 1967 | -10/Exiles | Found Prototype Energy Cannon 1968 | -10/Exiles | Identified Latent Energy Streamer 1971 | -10/Exiles | Found Prototype Slashing Weapon 1972 | -10/Exiles | Identified Longsword +1 1975 | -10/Exiles | Found Prototype Energy Cannon 1976 | -10/Exiles | Identified Gui. Plasma Cannon 2039 | -10/Exiles | Warned to stay clear of 0b10 Research branches 2141 | -10/Exiles | Discovered new exit (range 10) 2579 | -10/Exiles | Attacked by the Exiles 2589 | -10/Exiles | Core integrity fell below 20% 2594 | -10/Exiles | Destroyed by as-46524 with Assembled Rifle Last Messages --------------- 02584_ HV Slug penetrates Machine. 02584_ Machine disabled. 02586_ Penetrated by HV Slug. 02586_ HV Slug penetrates Wall. 02586_ Penetrated by HV Slug. 02586_ HV Slug penetrates Wall. 02586_ Machine disabled. 02588_ Overheating: System interference. 02588_ Latent Energy Streamer temporarily disabled. 02588_ Penetrated by HV Slug. 02588_ Targeting Computer destroyed. 02588_ HV Slug penetrates Wall. 02588_ Penetrated by HV Slug. 02588_ HV Slug penetrates Wall. 02591_ HV Slug penetrates Machine. 02591_ Machine disabled. 02591_ HV Slug penetrates as-09410. 02591_ as-09410 suffers critical hit (Destroy). 02591_ HV Slug penetrates Machine. Map ----- +----------------------------------------------------+ | """#?????????????????????????????????????????????? | | """#?????????????????????????????????????????????? | | """#?????????????????????????????????????????????? | | """#?????????????????????????????????????????????? | | """##????????????????????????????????????????????? | | """""????????????????????????????????????????????? | | """##????????????????????????????????????????????? | | """""????????????????????????????????????????????? | | # ????????????????????????????????????????????? | | """#?????????????????????????????????????????????? | | ####?????????????????????????????????????????????? | | ?????????????????????????????????????????????????? | | ?????????????????????????????????????????????????? | | ?????????????????????????????????????????????????? | | ##########???????????????????????????????????????? | | """""""""##??????????????????????????????????????? | | " """ """"##?????????????#???????????????????# ??? | | "" " #?????????#### ####??????????????# # | | " """#?????????# #?????????????# | | " "#?????????# ;;;;; #?????????????# | | " "##???????##;; ; ##???????????## | | ""###?????# ; ; #??????????## #? | | """#?????#;; g ;;#???????????# #? | | "#????##; ;##????????### #?? | | ##???# aa ########## #?? | | ##?## a@ #""""## #??? | | ### a * ##?? | | #; * #?? | | #;## ##? | | " ###" """#### ## | | aa #" ##?#######??#### * | | a ######??????????????##### | | ##???????????????????????### | | " ##??????????????????????????### | | """ ""#?????????????????????????????### | | ""#" "##??????????????????????????????#" | | """##"""""""##???????????????????????????????#### | | """###########???????????????????????????????????# | | ####?????????????????????????????????????????????# | | ?????????????????????????????????????????????????? | | ?????????????????????????????????????????????????? | | ?????????????????????????????????????????????????? | | ?????????????????????????????????????????????????? | | ?????????????????????????????????????????????????? | | ?????????????????????????????????????????????????? | | ?????????????????????????????????????????????????? | | ?????????????????????????????????????????????????? | | ?????????????????????????????????????????????????? | | ?????????????????????????????????????????????????? | | ?????????????????????????????????????????????????? | +----------------------------------------------------+ Best States ------------- Heat Dissipation 35 Energy Generation 12 Energy Capacity 265 Matter Stores 300 Matter Capacity 300 Sight Range 16 Terrain Scan Density 10 Evasion (%) 40 Targeting Accuracy 5 Recoil Reduction 2 Item Schematics ----------------- None Robot Schematics ------------------ None Fabricated ------------ Nothing Alien Tech Used ----------------- None Achievements -------------- None Challenges ------------ None Game ------ Seed HypervelocityClaymoresFlail Manual? 0 Play Time 00:15:06 Cumulative 34.3 hours Start 2024.04.04 @ 18:09:33 End 2024.04.04 @ 18:24:00 Sessions 1 Manual Loads 0 Difficulty Rogue Special Mode None Game No. 47 Rogue 47 Adventurer 0 Explorer 0 Win Type - Total 1 Types 1/0/0/0/0/0/0/0/0 Lore% 21 Gallery% 25 Achievement% 26 Wizard Run 0 Options --------- Layout 1 ASCII 0 Keyboard 0 Movement Mouse Keybinds 0 Fullscreen 2 Font 32/Smallcaps Map View 50x40 Zoom Use 0% Tactical HUD 1 Map Filters NONE Filters NONE Steam 1 RUN: 4b76be1f-372e-4f18-a114-5fba88976089